bitfinex-derivatives/quotes_BTCF0:USTF0_20251110
["timestamp","ask_amount","ask_price","bid_price","bid_amount"]
[1762736343780,0.52880772,106460.0,106450.0,0.8083786]
[1762736343972,0.41211803,106460.0,106450.0,0.8083786]
[1762736344370,0.41211803,106460.0,106450.0,0.7732186]
[1762736344371,0.54862772,106460.0,106450.0,0.7732186]
[1762736344568,0.0695,106450.0,106440.0,0.4290714]
[1762736344768,0.18838772,106450.0,106440.0,0.4290714]
[1762736345172,0.52422772,106450.0,106440.0,0.4290714]
[1762736345784,0.40749803,106450.0,106440.0,0.5624614]
[1762736345976,0.40749803,106450.0,106440.0,0.46849]
[1762736346780,0.40749803,106450.0,106440.0,0.5624614]
[1762736347081,0.07169803,106450.0,106440.0,0.5624614]
[1762736347274,0.40749803,106450.0,106440.0,0.5624614]
[1762736347475,0.40749803,106450.0,106440.0,0.4232614]
[1762736347669,0.40749803,106450.0,106440.0,0.4913914]
[1762736348476,0.40749803,106450.0,106440.0,0.42893]
[1762736348870,0.40749803,106450.0,106440.0,0.5229014]
[1762736349575,0.40749803,106450.0,106440.0,0.42893]
[1762736350078,0.52418772,106450.0,106440.0,0.42893]
[1762736350280,0.52418772,106450.0,106440.0,0.3608]
[1762736351276,0.08932,106440.0,106430.0,0.5230508]
[1762736351476,0.09382,106460.0,106450.0,0.1620924]
[1762736351688,0.43014355,106460.0,106450.0,0.52509043]
[1762736353282,0.43014355,106460.0,106450.0,0.88589043]
[1762736353880,0.54683324,106460.0,106450.0,0.43112803]
[1762736354276,0.54683324,106460.0,106450.0,0.52509043]
[1762736355386,0.54683324,106460.0,106450.0,0.43112803]
[1762736355586,0.54683324,106460.0,106450.0,0.36299803]
[1762736356574,0.90763324,106460.0,106450.0,0.00219803]
[1762736356981,0.90763324,106460.0,106430.0,0.48771514]
[1762736357284,0.90763324,106460.0,106430.0,0.19724317]
[1762736357285,0.20600969,106440.0,106430.0,0.19724317]
[1762736357480,0.54221324,106440.0,106430.0,0.16444313]
[1762736357782,0.54221324,106440.0,106430.0,0.52524313]
[1762736357980,0.54221324,106440.0,106430.0,0.55804317]
[1762736358382,0.42552355,106440.0,106430.0,0.55804317]
[1762736359487,0.42552355,106440.0,106430.0,0.10326947]
[1762736359882,0.42552355,106440.0,106430.0,0.46406947]
[1762736360083,0.42552355,106440.0,106430.0,0.10326947]
[1762736360680,0.54221324,106440.0,106430.0,0.55804947]
[1762736361075,0.54221324,106440.0,106430.0,0.46406947]
[1762736361286,0.54221324,106440.0,106430.0,0.03530943]
[1762736361788,0.54221324,106440.0,106430.0,0.07046943]
[1762736362589,0.90301324,106440.0,106430.0,0.07046943]
[1762736362988,0.54221324,106440.0,106430.0,0.07046943]
[1762736363489,0.90301324,106440.0,106430.0,0.07046943]
[1762736363690,0.54221324,106440.0,106430.0,0.07046943]
[1762736363882,0.0695,106430.0,106420.0,0.03280004]
[1762736364087,0.05548103,106420.0,106410.0,0.04920006]
[1762736364386,0.0695,106390.0,106380.0,0.24910728]
[1762736364700,0.52231324,106390.0,106380.0,0.13651151]
[1762736364988,0.07010355,106390.0,106380.0,0.61210571]
[1762736365295,0.37076355,106390.0,106380.0,0.61210571]
[1762736365493,0.40562355,106390.0,106380.0,0.25130571]
[1762736365685,0.40562355,106390.0,106380.0,0.61210571]
[1762736365990,0.40562355,106390.0,106380.0,0.15728151]
[1762736366188,0.52231324,106390.0,106380.0,0.15728151]
[1762736366387,0.52231324,106390.0,106380.0,0.00227141]
[1762736366388,0.88311324,106390.0,106380.0,0.00227141]
[1762736366585,0.76642355,106390.0,106380.0,0.10306141]
[1762736367190,0.88311324,106390.0,106380.0,7.338e-05]
[1762736367396,0.09317,106380.0,106370.0,0.0661101]
[1762736367594,0.07335,106370.0,106360.0,0.0661101]
[1762736367786,0.52616324,106370.0,106360.0,0.0661101]
[1762736368098,0.05304,106350.0,106340.0,0.20368545]
[1762736368392,0.50594346,106350.0,106340.0,0.00689971]
[1762736368693,0.50594346,106350.0,106340.0,0.00470168]
[1762736369281,0.86674346,106350.0,106340.0,0.00470168]
[1762736369984,0.86674346,106350.0,106340.0,0.00689971]
[1762736370994,0.86674346,106350.0,106340.0,0.00470168]
[1762736371393,0.04364,106330.0,106320.0,0.37931]
[1762736371588,0.04364,106320.0,106310.0,0.52470338]
[1762736371790,0.16093324,106320.0,106310.0,0.52690141]
[1762736372591,0.16093324,106320.0,106310.0,0.45061141]
[1762736372994,0.16093324,106320.0,106310.0,0.08981141]
[1762736373293,0.16093324,106320.0,106310.0,0.00701115]
[1762736373498,0.16093324,106320.0,106310.0,0.04222115]
[1762736373692,0.04424355,106320.0,106310.0,0.04222115]
[1762736373890,0.16093324,106320.0,106310.0,0.04222115]
[1762736374295,0.16093324,106320.0,106310.0,0.08330115]
[1762736374698,0.37984355,106320.0,106310.0,0.08330115]
[1762736374898,0.37980355,106320.0,106310.0,0.53818745]
[1762736375098,0.35802355,106320.0,106310.0,0.53818745]
[1762736375300,0.00060355,106320.0,106310.0,0.53818745]
[1762736375495,0.0001414,106330.0,106320.0,0.1948675]
[1762736375695,0.33634495,106330.0,106320.0,0.55786553]
[1762736375895,0.33630495,106330.0,106320.0,0.55786553]
[1762736376092,0.33630495,106330.0,106320.0,0.64066579]
[1762736376600,0.00074495,106330.0,106320.0,0.64066579]
[1762736376797,0.3357414,106330.0,106320.0,0.64066579]
[1762736377393,0.0001414,106330.0,106320.0,0.64066579]
[1762736377600,0.3357414,106330.0,106320.0,0.64066579]
[1762736378204,0.33634495,106330.0,106320.0,0.54658829]
[1762736378798,0.33634495,106330.0,106320.0,0.46378803]
[1762736379901,0.49667464,106330.0,106320.0,0.10298803]
[1762736380100,0.49667464,106330.0,106320.0,0.16847422]
[1762736380495,0.49667464,106330.0,106320.0,0.10298803]
[1762736380902,0.49667464,106330.0,106320.0,0.39820803]
[1762736381203,0.49667464,106330.0,106320.0,0.10298803]
[1762736381404,0.37998495,106330.0,106320.0,0.10298803]
[1762736381605,0.49667464,106330.0,106320.0,0.16847422]
[1762736381791,0.37998495,106330.0,106320.0,0.16847422]
[1762736381998,0.49667464,106330.0,106320.0,0.06768422]
[1762736382198,0.16107464,106330.0,106320.0,0.16847422]
[1762736382401,0.0001414,106330.0,106320.0,0.55786553]
[1762736382697,0.04373022,106350.0,106340.0,0.1948498]
[1762736382901,0.00069377,106350.0,106340.0,0.55784783]
[1762736383102,0.37989377,106350.0,106340.0,0.10298803]
[1762736383402,0.37989377,106350.0,106340.0,0.46378803]
[1762736383604,0.34603592,106350.0,106340.0,0.46378803]
[1762736384197,0.34603592,106350.0,106340.0,0.52925441]
[1762736384394,0.46272561,106350.0,106340.0,0.10298803]
[1762736384599,0.34603592,106350.0,106340.0,0.10298803]
[1762736386004,0.46272561,106350.0,106340.0,0.10298803]
[1762736386705,0.82352561,106350.0,106340.0,0.10298803]
[1762736387109,0.82352561,106350.0,106340.0,0.16845441]
[1762736388300,0.70683592,106350.0,106340.0,0.26251421]
[1762736388602,0.70683592,106350.0,106340.0,0.16845441]
[1762736388803,0.82352561,106350.0,106340.0,0.16845441]
[1762736389607,0.78966556,106350.0,106340.0,0.16845441]
[1762736390003,0.78966556,106350.0,106340.0,0.02669803]
[1762736390203,0.78966556,106350.0,106330.0,0.06560778]
[1762736390508,0.47748969,106340.0,106330.0,0.06780581]
[1762736390699,0.47748969,106350.0,106330.0,0.24158441]
[1762736390904,0.47748969,106350.0,106340.0,0.1961598]
[1762736391100,0.81296969,106350.0,106330.0,0.06560778]
[1762736391300,0.47748969,106340.0,106320.0,0.10730026]
[1762736391506,0.92965938,106330.0,106310.0,0.08761338]
[1762736391709,0.92965938,106330.0,106310.0,0.00701115]
[1762736391710,0.59417938,106320.0,106310.0,0.00701115]
[1762736392699,0.47748969,106320.0,106310.0,0.14007745]
[1762736392904,0.45216969,106320.0,106310.0,0.18080745]
[1762736393105,0.11668969,106320.0,106310.0,0.18080745]
[1762736393302,0.47748969,106320.0,106310.0,0.08672115]
[1762736393495,0.81296969,106320.0,106310.0,0.18080745]
[1762736393801,0.45216969,106320.0,106310.0,0.18080745]
[1762736394200,0.81296969,106320.0,106310.0,0.08672115]
[1762736394599,0.45216969,106320.0,106310.0,0.18080755]
[1762736394799,0.11668969,106320.0,106310.0,0.18080755]
[1762736394997,0.45216969,106320.0,106310.0,0.18080755]
[1762736395200,0.11668969,106320.0,106310.0,0.18080755]
[1762736395411,0.47763109,106330.0,106320.0,0.1021]
[1762736395597,0.47763109,106330.0,106320.0,0.19837553]
[1762736395902,0.47748969,106340.0,106320.0,0.19837553]
[1762736396107,0.47748969,106340.0,106330.0,0.07834]
[1762736396409,0.69624,106340.0,106330.0,0.08053803]
[1762736396601,0.47748969,106340.0,106330.0,0.08053803]
[1762736396802,0.11668969,106340.0,106330.0,0.17460673]
[1762736397003,0.50967706,106350.0,106340.0,0.10093]
[1762736397203,0.84511706,106350.0,106340.0,0.10312803]
[1762736397602,0.50967706,106350.0,106340.0,0.10312803]
[1762736397804,0.50967706,106350.0,106340.0,0.06376803]
[1762736398107,0.50967706,106350.0,106340.0,0.10312803]
[1762736398707,0.84511706,106350.0,106340.0,0.10312803]
[1762736399304,0.84511706,106350.0,106340.0,0.06376803]
[1762736399509,0.84511706,106350.0,106340.0,0.10312803]
[1762736399713,0.84511706,106350.0,106340.0,0.02623803]
[1762736400008,0.84511706,106350.0,106340.0,0.02404]
[1762736400206,0.67380661,106350.0,106340.0,0.02623803]
[1762736400409,0.84514203,106350.0,106320.0,0.54302166]
[1762736400613,0.53213542,106330.0,106320.0,0.10161943]
[1762736400807,0.53213542,106330.0,106320.0,0.08513969]
[1762736400808,0.86753542,106330.0,106320.0,0.08513969]
[1762736401008,0.9408053,106330.0,106320.0,0.0001414]
[1762736401317,0.89023043,106330.0,106320.0,0.02404]
[1762736401502,0.89023043,106330.0,106320.0,0.10312803]
[1762736401809,0.55483043,106330.0,106320.0,0.19720553]
[1762736402014,0.89023043,106330.0,106320.0,0.19720553]
[1762736402219,0.41137487,106340.0,106330.0,0.1709587]
[1762736402516,0.33536,106340.0,106330.0,0.09626673]
[1762736402702,0.58285169,106350.0,106340.0,0.10093]
[1762736402903,0.3355014,106350.0,106340.0,0.10312803]
[1762736403102,0.3355014,106350.0,106340.0,0.46392803]
[1762736403307,0.3355014,106350.0,106340.0,0.10312803]
[1762736403709,0.3355014,106350.0,106340.0,0.55798793]
[1762736403908,0.3355014,106350.0,106340.0,0.46392803]
[1762736404309,0.0001414,106350.0,106340.0,0.55798783]
[1762736404511,0.3355014,106350.0,106340.0,0.46392803]
[1762736404712,0.3355014,106350.0,106340.0,0.55798783]
[1762736404915,1.48,106360.0,106340.0,0.55798783]
[1762736405211,0.41137487,106370.0,106360.0,0.10093]
[1762736405212,0.41125519,106370.0,106360.0,0.10093]
[1762736405412,0.41125519,106370.0,106360.0,0.09089802]
[1762736405413,0.74661519,106370.0,106360.0,0.09089802]
[1762736405807,0.41125519,106370.0,106360.0,0.09089802]
[1762736406010,0.74657519,106370.0,106360.0,0.09089802]
[1762736406204,0.38577519,106370.0,106360.0,0.09089802]
[1762736406410,0.33532,106370.0,106360.0,0.54574012]
[1762736407022,0.05059659,106380.0,106370.0,0.07689]
[1762736407210,0.38587659,106380.0,106370.0,0.07908803]
[1762736407910,0.38587659,106380.0,106370.0,0.53392133]
[1762736408309,0.35201445,106380.0,106370.0,0.53392133]
[1762736409410,0.0001414,106390.0,106380.0,0.1949544]
[1762736409614,0.3353814,106390.0,106380.0,0.55795243]
[1762736409811,0.3353814,106390.0,106380.0,0.46392803]
[1762736410020,0.6961814,106390.0,106380.0,0.10312803]
[1762736410711,0.3353814,106390.0,106380.0,0.10312803]
[1762736410907,0.0001414,106390.0,106380.0,0.55795243]
[1762736411211,0.3353414,106390.0,106380.0,0.10312803]
[1762736411411,0.6961414,106390.0,106380.0,0.10312803]
[1762736411613,0.6961414,106390.0,106380.0,0.02623803]
[1762736411806,0.6961414,106390.0,106380.0,0.09089997]
[1762736412517,0.3353414,106390.0,106380.0,0.45169997]
[1762736412913,0.3352,106390.0,106380.0,0.45169997]
[1762736413118,0.31276774,106390.0,106380.0,0.45169997]
[1762736414024,0.23880251,106400.0,106390.0,0.07689]
[1762736414328,0.52723511,106400.0,106390.0,0.07908803]
[1762736414616,0.19211511,106400.0,106390.0,0.07908803]
[1762736414918,0.52723511,106400.0,106390.0,0.07908803]
[1762736415125,0.5947022,106400.0,106390.0,0.07908803]
[1762736415715,0.42336678,106400.0,106390.0,0.43988803]
[1762736415918,0.35589969,106400.0,106390.0,0.43988803]
[1762736416216,0.35589969,106400.0,106390.0,0.53390363]
[1762736416427,0.35585969,106400.0,106390.0,0.53390363]
[1762736416728,0.35585969,106400.0,106390.0,0.76886363]
[1762736416915,0.35585969,106400.0,106390.0,0.53390363]
[1762736417116,0.35585969,106400.0,106390.0,0.76886363]
[1762736418022,0.3352214,106410.0,106400.0,0.1949368]
[1762736418220,0.36883387,106410.0,106400.0,0.54570955]
[1762736418417,0.36883387,106410.0,106400.0,0.46392803]
[1762736418625,0.76281387,106410.0,106400.0,0.00219803]
[1762736418824,0.03318,106390.0,106380.0,0.44950194]
[1762736419121,0.79648709,106390.0,106380.0,0.01400997]
[1762736419326,0.72902,106390.0,106380.0,0.00219803]
[1762736419518,0.79648709,106390.0,106380.0,0.00219803]
[1762736419715,0.36822,106390.0,106380.0,0.10312803]
[1762736419921,0.36822,106390.0,106380.0,0.46392803]
[1762736419922,0.33504,106390.0,106380.0,0.46392803]
[1762736420121,0.53955542,106390.0,106380.0,0.10312803]
[1762736420322,0.90035542,106390.0,106380.0,0.06376803]
[1762736420622,0.53955542,106390.0,106380.0,0.46392803]
[1762736420820,0.36822,106390.0,106380.0,0.46392803]
[1762736423337,0.1272045,106380.0,106370.0,0.0001414]
[1762736423522,0.03318,106350.0,106340.0,0.10093]
[1762736423723,0.90023542,106350.0,106340.0,0.10312803]
[1762736423923,0.90023542,106350.0,106340.0,0.00219803]
[1762736424124,0.86636402,106350.0,106340.0,0.00219803]
[1762736424721,0.53144402,106350.0,106340.0,0.19718783]
[1762736424923,0.3609414,106360.0,106350.0,0.07689]
[1762736425135,0.3350614,106360.0,106350.0,0.53393903]
[1762736425326,0.3350614,106360.0,106350.0,0.43988803]
[1762736426535,0.3350614,106360.0,106350.0,0.53393903]
[1762736426744,0.0001414,106360.0,106350.0,0.53393903]
[1762736426937,0.31248274,106360.0,106350.0,0.53393903]
[1762736427142,0.17133542,106370.0,106360.0,0.10014]
[1762736427331,0.50625542,106370.0,106360.0,0.10233803]
[1762736427531,0.86705542,106370.0,106360.0,0.10233803]
[1762736427739,0.50625542,106370.0,106360.0,0.10233803]
[1762736427928,0.86705542,106370.0,106360.0,0.10233803]
[1762736428237,0.55684034,106370.0,106360.0,0.10233803]
[1762736428440,0.50625542,106370.0,106360.0,0.10233803]
[1762736429136,0.55684034,106370.0,106360.0,0.10233803]
[1762736429532,0.91764034,106370.0,106360.0,0.06322803]
[1762736429728,0.91764034,106370.0,106360.0,0.02569803]
[1762736430436,0.91764034,106370.0,106360.0,0.00219803]
[1762736430937,0.74630492,106370.0,106360.0,0.06506803]
[1762736431124,0.91764034,106370.0,106360.0,0.19822023]
[1762736431324,0.91764034,106370.0,106360.0,0.10417803]
[1762736431528,0.91764034,106370.0,106360.0,0.00219803]
[1762736433245,0.91764034,106370.0,106360.0,0.02569803]
[1762736434438,0.91764034,106370.0,106360.0,0.00219803]
[1762736435543,0.91764034,106370.0,106360.0,0.02569803]
[1762736436239,0.91764034,106370.0,106360.0,0.00219803]
[1762736436942,0.86705542,106370.0,106350.0,0.0001414]
[1762736437238,0.41146817,106360.0,106350.0,0.0001414]
[1762736438032,0.37759775,106360.0,106350.0,0.00233943]
[1762736438740,0.38546817,106360.0,106350.0,0.17487043]
[1762736438940,0.22200359,106370.0,106360.0,0.10198]
[1762736439141,0.91760359,106370.0,106360.0,0.10417803]
[1762736439743,0.91760359,106370.0,106360.0,0.02569803]
[1762736440644,0.91760359,106370.0,106360.0,0.00219803]
[1762736441143,0.91760359,106370.0,106360.0,0.02569803]
[1762736441841,0.91760359,106370.0,106350.0,0.0001414]
[1762736442144,0.41146817,106360.0,106350.0,0.0001414]
[1762736442940,0.50551037,106360.0,106340.0,0.02404]
[1762736443242,1.01161549,106350.0,106320.0,0.46332]
[1762736443542,0.17133542,106330.0,106320.0,0.55959563]
[1762736443843,0.58280359,106350.0,106340.0,0.0235]
[1762736444145,0.88365007,106350.0,106340.0,0.00219803]
[1762736444447,1.46,106340.0,106330.0,0.4003114]
[1762736444747,1.8208,106340.0,106330.0,0.04170943]
[1762736446044,1.8208,106340.0,106330.0,0.00233943]
[1762736446449,1.79472,106340.0,106330.0,0.44161943]
[1762736446744,2.15552,106340.0,106330.0,0.08081943]
[1762736447338,2.15552,106340.0,106330.0,0.00233943]
[1762736447538,2.15552,106340.0,106330.0,0.04102943]
[1762736447741,1.79472,106340.0,106330.0,0.04102943]
[1762736449648,2.15552,106340.0,106330.0,0.04102943]
[1762736450145,0.33472,106340.0,106330.0,0.07934943]
[1762736450445,0.54893007,106350.0,106340.0,0.02118]
[1762736450641,0.88361007,106350.0,106340.0,0.02337803]
[1762736451241,0.97766397,106350.0,106330.0,0.0001414]
[1762736451441,0.4548597,106340.0,106330.0,0.0001414]
[1762736452242,0.3608,106350.0,106340.0,0.09819]
[1762736452549,0.05080957,106360.0,106350.0,0.1710608]
[1762736452746,0.05080957,106360.0,106350.0,0.07920803]
[1762736452747,0.38544957,106360.0,106350.0,0.07920803]
[1762736452950,0.38544957,106360.0,106350.0,0.17325883]
[1762736453140,0.0001414,106360.0,106350.0,0.53405883]
[1762736453852,0.3347814,106360.0,106350.0,0.53405883]
[1762736455142,0.0001414,106360.0,106350.0,0.53405883]
[1762736455347,0.3347414,106360.0,106350.0,0.53405883]
[1762736455544,0.0001414,106360.0,106350.0,0.53405883]
[1762736455947,0.05066817,106370.0,106360.0,0.190072]
[1762736456145,0.05066817,106380.0,106370.0,0.1651532]
[1762736456451,0.38526817,106380.0,106370.0,0.52815123]
[1762736456649,0.05066817,106380.0,106370.0,0.52815123]
[1762736456837,0.38526817,106380.0,106370.0,0.52815123]
[1762736457045,0.05066817,106380.0,106370.0,0.52815123]
[1762736457440,0.0001414,106390.0,106380.0,0.1864343]
[1762736457654,0.3347014,106390.0,106380.0,0.54943233]
[1762736457846,0.3347014,106390.0,106380.0,0.45540803]
[1762736458052,0.50603682,106390.0,106380.0,0.45540803]
[1762736458247,0.86683682,106390.0,106380.0,0.02348803]
[1762736458552,0.86683682,106390.0,106370.0,0.3608]
[1762736458753,0.86683682,106390.0,106370.0,0.36299803]
[1762736459047,0.11675734,106380.0,106370.0,0.36299803]
[1762736459250,0.11675734,106380.0,106370.0,0.43411803]
[1762736460451,0.45127734,106380.0,106370.0,0.52815113]
[1762736460751,0.11689874,106390.0,106380.0,0.09241]
[1762736461052,0.3346614,106390.0,106380.0,0.54943233]
[1762736461253,0.0001414,106390.0,106380.0,0.54943233]
[1762736461449,0.0001414,106390.0,106380.0,1.14943233]
[1762736461750,0.3608,106410.0,106400.0,0.09241]
[1762736461950,0.47755734,106420.0,106410.0,0.07112]
[1762736462154,0.81203734,106420.0,106410.0,0.07331803]
[1762736462343,0.81203734,106420.0,106410.0,0.52811583]
[1762736462344,0.11675734,106420.0,106410.0,0.52811583]
[1762736462539,0.11675734,106420.0,106410.0,0.43411803]
[1762736462743,0.45123734,106420.0,106410.0,0.43411803]
[1762736462945,0.33448,106420.0,106410.0,0.43411803]
[1762736463447,0.11675734,106420.0,106410.0,0.43411803]
[1762736463647,0.33448,106420.0,106410.0,0.52811583]
[1762736463841,0.12139874,106430.0,106420.0,0.09241]
[1762736464038,0.45583874,106430.0,106420.0,0.09460803]
[1762736464444,0.12139874,106430.0,106420.0,0.54939693]
[1762736464647,0.3390814,106430.0,106420.0,0.54939693]
[1762736464954,0.16742551,106450.0,106440.0,0.09241]
[1762736465155,0.93848551,106450.0,106440.0,0.08238671]
[1762736465449,0.93848551,106450.0,106440.0,0.02504671]
[1762736465650,0.07586,106430.0,106420.0,0.09241]
[1762736465856,0.52701734,106430.0,106420.0,0.09460803]
[1762736466354,0.88781734,106430.0,106420.0,0.09460803]
[1762736466543,0.52701734,106430.0,106420.0,0.09460803]
[1762736466849,0.52701734,106430.0,106420.0,0.03726803]
[1762736467055,0.07586,106420.0,106410.0,0.0001414]
[1762736467243,0.07586,106420.0,106410.0,0.43425943]
[1762736467244,0.19261734,106420.0,106410.0,0.43425943]
[1762736467451,0.55355874,106440.0,106430.0,0.07112]
[1762736467757,0.88787874,106440.0,106430.0,0.00219803]
[1762736468347,0.88787874,106440.0,106430.0,0.07331803]
[1762736468549,0.88787874,106440.0,106430.0,0.00219803]
[1762736468952,0.52707874,106440.0,106430.0,0.03726803]
[1762736469150,0.52707874,106440.0,106430.0,0.07331803]
[1762736469547,0.88787874,106440.0,106430.0,0.07331803]
[1762736471259,0.55355874,106440.0,106430.0,0.07331803]
[1762736471460,0.88783874,106440.0,106430.0,0.07331803]
[1762736472155,0.07586,106420.0,106410.0,0.3960114]
[1762736472356,0.52685734,106420.0,106410.0,0.36313943]
[1762736472557,0.89987734,106420.0,106410.0,0.0001414]
[1762736472857,0.89987734,106420.0,106410.0,0.00233943]
[1762736473164,0.19261734,106420.0,106410.0,0.00233943]
[1762736473350,0.19261734,106420.0,106410.0,0.07345943]
[1762736473550,0.52685734,106420.0,106410.0,0.07345943]
[1762736473751,0.19261734,106420.0,106410.0,0.16745743]
[1762736473962,0.52685734,106420.0,106410.0,0.52825743]
[1762736474150,0.19261734,106420.0,106410.0,0.16745743]
[1762736474355,0.52681734,106420.0,106410.0,0.52825743]
[1762736474551,0.19261734,106420.0,106410.0,0.52825743]
[1762736474763,0.51623874,106440.0,106430.0,0.07112]
[1762736474956,0.88775874,106440.0,106430.0,0.00219803]
[1762736475158,0.88775874,106440.0,106430.0,0.07331803]
[1762736475358,0.19275874,106440.0,106430.0,0.16729833]
[1762736475659,0.3343414,106440.0,106430.0,0.16729833]
[1762736475968,0.45109874,106440.0,106430.0,0.43411803]
[1762736476160,0.45109874,106440.0,106430.0,0.52809833]
[1762736477866,0.45109874,106440.0,106430.0,0.43411803]
[1762736478064,0.48963874,106440.0,106430.0,0.43411803]
[1762736478265,0.52695874,106440.0,106430.0,0.43411803]
[1762736478472,0.52691874,106440.0,106430.0,0.52809833]
[1762736478663,0.19275874,106440.0,106430.0,0.43411803]
[1762736478864,0.52691874,106440.0,106430.0,0.43411803]
[1762736479073,0.52691874,106440.0,106430.0,0.52809833]
[1762736479372,0.45105874,106440.0,106430.0,0.52809833]
[1762736479672,0.52691874,106440.0,106430.0,0.43411803]
[1762736479972,0.0760014,106440.0,106430.0,0.52809833]
[1762736480166,0.52687874,106440.0,106430.0,0.52809833]
[1762736481567,0.45101874,106440.0,106430.0,0.52809833]
[1762736481865,0.45101874,106440.0,106430.0,0.5259003]
[1762736482070,0.45321677,106440.0,106430.0,0.51660967]
[1762736482270,0.57974494,106440.0,106430.0,0.51660967]
[1762736482570,0.57974494,106440.0,106430.0,0.42262937]
[1762736483367,0.4629876,106440.0,106430.0,0.42262937]
[1762736483569,0.57974494,106440.0,106430.0,0.42262937]
[1762736485368,0.59196494,106440.0,106430.0,0.00073267]
[1762736485574,0.07586,106420.0,106410.0,0.4320614]
[1762736485775,0.52885537,106420.0,106410.0,0.43279407]
[1762736486962,0.04073803,106420.0,106410.0,0.52679207]
[1762736487279,0.33619803,106420.0,106410.0,0.52679207]
[1762736487467,0.30235239,106420.0,106410.0,0.52679207]
[1762736487664,0.16731818,106430.0,106420.0,0.1842592]
[1762736487865,0.38456084,106430.0,106420.0,0.54725723]
[1762736488073,0.05056084,106430.0,106420.0,0.54725723]
[1762736488271,0.38456084,106430.0,106420.0,0.54725723]
[1762736488674,0.57272818,106430.0,106420.0,0.54725723]
[1762736488874,0.57282636,106430.0,106420.0,0.53503517]
[1762736489577,0.52216734,106430.0,106420.0,0.00219803]
[1762736489769,0.08143,106420.0,106410.0,0.0001414]
[1762736490068,0.07141,106400.0,106390.0,0.41151094]
[1762736490273,0.52216734,106400.0,106390.0,0.41370897]
[1762736490473,0.52216734,106400.0,106390.0,0.48453897]
[1762736491272,0.52216734,106400.0,106390.0,0.57855457]
[1762736491776,0.53775734,106400.0,106390.0,0.35246326]
[1762736491970,1.54390468,106400.0,106380.0,0.00026121]
[1762736492172,1.54390468,106400.0,106360.0,0.09216]
[1762736492173,0.16744544,106390.0,106360.0,0.09216]
[1762736492380,0.47755734,106370.0,106360.0,0.09435803]
[1762736492670,0.81183734,106370.0,106360.0,0.09431803]
[1762736492865,0.3608,106370.0,106360.0,0.09431803]
[1762736493060,0.3608,106370.0,106360.0,0.11752993]
[1762736493061,0.33431915,106370.0,106360.0,0.11752993]
[1762736493264,0.33431915,106370.0,106360.0,0.18835993]
[1762736493466,7.915e-05,106370.0,106360.0,0.18835993]
[1762736493677,0.33427915,106370.0,106360.0,0.18835993]
[1762736494470,0.0001414,106380.0,106370.0,0.1648631]
[1762736494677,0.0001414,106380.0,106370.0,0.16706113]
[1762736494678,0.3343414,106380.0,106370.0,0.16706113]
[1762736494977,0.3343414,106380.0,106370.0,0.07302803]
[1762736495177,0.3343414,106380.0,106370.0,0.16706113]
[1762736495472,0.3343414,106380.0,106370.0,0.52786113]
[1762736495671,0.3343414,106380.0,106370.0,0.16706113]
[1762736495979,0.3343414,106380.0,106370.0,0.07402803]
[1762736496367,0.0001414,106380.0,106370.0,0.52886113]
[1762736496569,0.3344214,106380.0,106370.0,0.52886113]
[1762736497473,0.3341814,106380.0,106370.0,0.76386113]
[1762736497676,0.43221,106410.0,106400.0,0.09027]
[1762736497980,0.76625,106410.0,106400.0,0.18647463]
[1762736498178,0.76625,106410.0,106400.0,0.07302803]
[1762736498479,0.40545,106410.0,106400.0,0.16703463]
[1762736498776,0.76625,106410.0,106400.0,0.07302803]
[1762736498977,0.76825,106410.0,106400.0,0.07302803]
[1762736499377,0.76825,106410.0,106400.0,0.03764803]
[1762736499775,0.88500734,106410.0,106400.0,0.03764803]
[1762736500279,0.76625,106410.0,106400.0,0.07302803]
[1762736501079,0.73239944,106410.0,106400.0,0.06080422]
[1762736501580,0.37159944,106410.0,106400.0,0.17425082]
[1762736502170,0.37159944,106410.0,106400.0,0.53505082]
[1762736502370,0.37159944,106410.0,106400.0,0.17425082]
[1762736503175,0.03755944,106410.0,106400.0,0.53505082]
[1762736503380,0.37159944,106410.0,106400.0,0.53505082]
[1762736504382,1.7809414,106420.0,106410.0,0.1648278]
[1762736504574,2.1149814,106420.0,106410.0,0.16702583]
[1762736505279,1.4201414,106420.0,106410.0,0.52782583]
[1762736505479,1.7541414,106420.0,106410.0,0.52782583]
[1762736505881,1.7541414,106420.0,106410.0,0.76274583]
[1762736505882,1.4201414,106420.0,106410.0,0.76274583]
[1762736506076,1.7541414,106420.0,106410.0,0.52782583]
[1762736506589,1.7541414,106420.0,106410.0,0.76274583]
[1762736506770,1.7551414,106420.0,106410.0,0.76274583]
[1762736507791,1.7551414,106420.0,106410.0,0.62179754]
[1762736508083,0.0011414,106420.0,106410.0,0.85671754]
[1762736508278,0.0011414,106420.0,106410.0,0.62179754]
[1762736508484,1.4211414,106420.0,106410.0,0.62179754]
[1762736508884,0.0011414,106420.0,106410.0,0.85671754]
[1762736509083,0.0011414,106420.0,106410.0,0.62179754]
[1762736509292,0.0011414,106420.0,106410.0,0.85671754]
[1762736510786,0.0011414,106420.0,106410.0,0.62179754]
[1762736510981,0.0011414,106420.0,106410.0,0.85671754]
[1762736511382,0.43634,106450.0,106440.0,0.10074]
[1762736511582,0.88705734,106450.0,106440.0,0.18468927]
[1762736511788,0.88705734,106450.0,106440.0,0.06778797]
[1762736511982,0.88705734,106450.0,106440.0,0.02752797]
[1762736512280,0.88705734,106450.0,106440.0,0.03974803]
[1762736513484,0.88705734,106450.0,106440.0,0.08000803]
[1762736513887,0.88705734,106450.0,106440.0,0.17397953]
[1762736514076,0.88705734,106450.0,106440.0,0.08000803]
[1762736514277,0.88705734,106450.0,106440.0,0.00219803]
[1762736514689,0.88705734,106450.0,106440.0,0.08000803]
[1762736514986,0.88705734,106450.0,106440.0,0.03974803]
[1762736515985,0.88705734,106450.0,106440.0,0.08000803]
[1762736516488,0.88705734,106450.0,106440.0,0.00219803]
[1762736516688,0.88705734,106450.0,106440.0,0.04107803]
[1762736517188,0.88705734,106450.0,106440.0,0.08080803]
[1762736518285,0.88705734,106450.0,106440.0,0.17477953]
[1762736518486,0.3810314,106460.0,106450.0,0.1725727]
[1762736518487,0.4456514,106460.0,106450.0,0.1725727]
[1762736518786,0.0848514,106460.0,106450.0,0.53557073]
[1762736518989,0.1088314,106460.0,106450.0,0.45696073]
[1762736519193,0.08021,106440.0,106430.0,0.0001414]
[1762736519391,1.25244734,106440.0,106430.0,0.08094943]
[1762736519590,0.33388,106440.0,106430.0,0.53572983]
[1762736519894,0.41409,106450.0,106440.0,0.1951315]
[1762736520085,0.7398114,106460.0,106450.0,0.03888]
[1762736520290,0.7795314,106460.0,106450.0,0.08080803]
[1762736521381,0.3654414,106460.0,106450.0,0.17477073]
[1762736521582,0.0046414,106460.0,106450.0,0.84535292]
[1762736521796,0.0046414,106460.0,106450.0,0.61051292]
[1762736523090,0.0046414,106460.0,106450.0,0.61351292]
[1762736523893,1.3946414,106460.0,106450.0,0.61351292]
[1762736524282,0.3608,106480.0,106470.0,0.172555]
[1762736524488,0.37433,106480.0,106470.0,0.17475303]